[Event "Titled Tuesday Blitz February 22 Early 2022"]
[White "Oparin, Grigoriy"]
[Black "Papp, Petra"]
[WhiteFideId "24125890"]
[BlackFideId "739049"]
[WhiteElo "2685"]
[BlackElo "2259"]
[Result "1-0"]
[Round "01"]
[TimeControl "180+1"]
[Date "2022.02.22"]
[WhiteClock "0:01:16"]
[BlackClock "0:00:02"]

1. d4 {[%clk 0:03:00]}  Nf6 {[%clk 0:02:57]} 2. c4 {[%clk 0:03:00]}  c5 {[%clk 0:02:56]} 3. Nf3 {[%clk 0:02:58]}  cxd4 {[%clk 0:02:55]} 4. Nxd4 {[%clk 0:02:59]}  e5 {[%clk 0:02:55]} 5. Nb5 {[%clk 0:02:56]}  d5 {[%clk 0:02:55]} 6. cxd5 {[%clk 0:02:56]}  Bc5 {[%clk 0:02:54]} 7. e3 {[%clk 0:02:55]}  O-O {[%clk 0:02:53]} 8. N1c3 {[%clk 0:02:54]}  Bf5 {[%clk 0:02:37]} 9. d6 {[%clk 0:02:46]}  Na6 {[%clk 0:02:24]} 10. a3 {[%clk 0:02:44]}  Rc8 {[%clk 0:02:11]} 11. Be2 {[%clk 0:02:43]}  Ne4 {[%clk 0:02:01]} 12. O-O {[%clk 0:02:34]}  Nxc3 {[%clk 0:01:58]} 13. bxc3 {[%clk 0:02:35]}  Bb6 {[%clk 0:01:54]} 14. a4 {[%clk 0:02:21]}  Nc5 {[%clk 0:01:42]} 15. a5 {[%clk 0:02:21]}  Bxa5 {[%clk 0:01:39]} 16. Nxa7 {[%clk 0:02:22]}  Ra8 {[%clk 0:01:38]} 17. Nb5 {[%clk 0:02:22]}  Ne4 {[%clk 0:01:22]} 18. Bb2 {[%clk 0:02:17]}  Qg5 {[%clk 0:01:12]} 19. Bf3 {[%clk 0:02:09]}  Rfd8 {[%clk 0:01:08]} 20. c4 {[%clk 0:01:58]}  Nc5 {[%clk 0:01:02]} 21. Bxe5 {[%clk 0:01:51]}  Bd3 {[%clk 0:00:54]} 22. Bf4 {[%clk 0:01:51]}  Qg6 {[%clk 0:00:43]} 23. Be2 {[%clk 0:01:49]}  Bc2 {[%clk 0:00:39]} 24. Qd5 {[%clk 0:01:40]}  Nb3 {[%clk 0:00:26]} 25. Ra2 {[%clk 0:01:30]}  h6 {[%clk 0:00:17]} 26. Bh5 {[%clk 0:01:26]}  Qd3 {[%clk 0:00:11]} 27. Bxf7+ {[%clk 0:01:23]}  Kh8 {[%clk 0:00:10]} 28. Qxd3 {[%clk 0:01:21]}  Bxd3 {[%clk 0:00:11]} 29. Rd1 {[%clk 0:01:22]}  Be4 {[%clk 0:00:08]} 30. Bd5 {[%clk 0:01:19]}  Bxd5 {[%clk 0:00:07]} 31. Rxd5 {[%clk 0:01:19]}  Bb6 {[%clk 0:00:02]} 32. Rxa8 {[%clk 0:01:20]}  Rxa8 {[%clk 0:00:02]} 33. g4 {[%clk 0:01:21]}  Nc5 {[%clk 0:00:02]} 34. Be5 {[%clk 0:01:17]}  Nd7 {[%clk 0:00:01]} 35. Bd4 {[%clk 0:01:18]}  Ba5 {[%clk 0:00:02]} 36. e4 {[%clk 0:01:16]}  Rc8 {[%clk 0:00:02]} 37. e5 {[%clk 0:01:16]}  Rxc4 {[%clk 0:00:03]} 38. e6 {[%clk 0:01:15]}  Nb6 {[%clk 0:00:03]} 39. e7 {[%clk 0:01:15]}  Rc8 {[%clk 0:00:02]} 40. Bxb6 {[%clk 0:01:14]}  Bxb6 {[%clk 0:00:02]} 41. d7 {[%clk 0:01:15]}  Rc2 {[%clk 0:00:02]} 42. Kg2 {[%clk 0:01:16]} 1-0


[Site "https://www.chess.com"]

[Event "Titled Tuesday Blitz February 22 Early 2022"]
[White "Oro, Luis"]
[Black "Dev, Shah"]
[WhiteFideId "104094"]
[BlackFideId "35019058"]
[WhiteElo "2301"]
[BlackElo "2098"]
[Result "0-1"]
[Round "01"]
[TimeControl "180+1"]
[Date "2022.02.22"]
[WhiteClock "0:00:09"]
[BlackClock "0:00:06"]

1. e4 {[%clk 0:02:52]}  e5 {[%clk 0:02:57]} 2. Nf3 {[%clk 0:02:51]}  Nc6 {[%clk 0:02:57]} 3. Bc4 {[%clk 0:02:50]}  Bc5 {[%clk 0:02:55]} 4. c3 {[%clk 0:02:49]}  Nf6 {[%clk 0:02:54]} 5. d3 {[%clk 0:02:48]}  h6 {[%clk 0:02:49]} 6. O-O {[%clk 0:02:44]}  d6 {[%clk 0:02:46]} 7. a4 {[%clk 0:02:43]}  a5 {[%clk 0:02:45]} 8. Nbd2 {[%clk 0:02:39]}  O-O {[%clk 0:02:43]} 9. Re1 {[%clk 0:02:39]}  Bb6 {[%clk 0:02:39]} 10. Nf1 {[%clk 0:02:35]}  Ne7 {[%clk 0:02:37]} 11. Ng3 {[%clk 0:02:33]}  Ng6 {[%clk 0:02:37]} 12. Be3 {[%clk 0:02:34]}  c6 {[%clk 0:02:34]} 13. Qd2 {[%clk 0:02:29]}  Bxe3 {[%clk 0:02:15]} 14. fxe3 {[%clk 0:02:20]}  d5 {[%clk 0:02:13]} 15. exd5 {[%clk 0:02:18]}  cxd5 {[%clk 0:02:14]} 16. Bb5 {[%clk 0:02:18]}  Bg4 {[%clk 0:01:59]} 17. Rf1 {[%clk 0:02:05]}  e4 {[%clk 0:01:58]} 18. Nd4 {[%clk 0:01:59]}  Ne5 {[%clk 0:01:57]} 19. dxe4 {[%clk 0:01:53]}  dxe4 {[%clk 0:01:40]} 20. Rf4 {[%clk 0:01:49]}  Ng6 {[%clk 0:01:28]} 21. Rf2 {[%clk 0:01:37]}  h5 {[%clk 0:01:28]} 22. Raf1 {[%clk 0:01:31]}  h4 {[%clk 0:01:25]} 23. Ngf5 {[%clk 0:01:31]}  Nh5 {[%clk 0:01:14]} 24. Qc2 {[%clk 0:01:22]}  Qg5 {[%clk 0:00:46]} 25. Qxe4 {[%clk 0:01:15]}  Nf6 {[%clk 0:00:46]} 26. Qd3 {[%clk 0:01:13]}  Ne5 {[%clk 0:00:39]} 27. Qd2 {[%clk 0:01:07]}  Ne4 {[%clk 0:00:39]} 28. Qc2 {[%clk 0:01:02]}  Nxf2 {[%clk 0:00:38]} 29. Qxf2 {[%clk 0:01:03]}  Bxf5 {[%clk 0:00:32]} 30. Nxf5 {[%clk 0:01:03]}  h3 {[%clk 0:00:29]} 31. g3 {[%clk 0:01:01]}  Rad8 {[%clk 0:00:24]} 32. Nd4 {[%clk 0:00:47]}  Ng4 {[%clk 0:00:19]} 33. Qf4 {[%clk 0:00:47]}  Qxf4 {[%clk 0:00:20]} 34. exf4 {[%clk 0:00:46]}  Nf6 {[%clk 0:00:10]} 35. Re1 {[%clk 0:00:43]}  Nd5 {[%clk 0:00:10]} 36. Bc4 {[%clk 0:00:28]}  Nf6 {[%clk 0:00:06]} 37. Bb5 {[%clk 0:00:23]}  Nd5 {[%clk 0:00:05]} 38. Nf5 {[%clk 0:00:21]}  g6 {[%clk 0:00:05]} 39. Nh6+ {[%clk 0:00:20]}  Kg7 {[%clk 0:00:05]} 40. Ng4 {[%clk 0:00:21]}  Nf6 {[%clk 0:00:05]} 41. Nf2 {[%clk 0:00:20]}  Rd2 {[%clk 0:00:05]} 42. b3 {[%clk 0:00:20]}  Rc8 {[%clk 0:00:04]} 43. Rc1 {[%clk 0:00:15]}  Rb2 {[%clk 0:00:04]} 44. Bc4 {[%clk 0:00:15]}  Rd8 {[%clk 0:00:04]} 45. Nd3 {[%clk 0:00:13]}  Rxb3 {[%clk 0:00:04]} 46. Bxb3 {[%clk 0:00:12]}  Rxd3 {[%clk 0:00:04]} 47. Bc4 {[%clk 0:00:12]}  Rd2 {[%clk 0:00:04]} 48. Bb5 {[%clk 0:00:11]}  Ng4 {[%clk 0:00:04]} 49. Kf1 {[%clk 0:00:09]}  Nxh2+ {[%clk 0:00:04]} 50. Ke1 {[%clk 0:00:09]}  Nf3+ {[%clk 0:00:05]} 51. Kf1 {[%clk 0:00:09]}  h2 {[%clk 0:00:06]} 0-1


[Site "https://www.chess.com"]

[Event "Titled Tuesday Blitz February 22 Early 2022"]
[White "Ozates, Tuna"]
[Black "Jumabayev, Rinat"]
[WhiteFideId "6354521"]
[BlackFideId "13702661"]
[WhiteElo "1872"]
[BlackElo "2561"]
[Result "0-1"]
[Round "01"]
[TimeControl "180+1"]
[Date "2022.02.22"]
[WhiteClock "0:00:26"]
[BlackClock "0:00:09"]

1. e4 {[%clk 0:03:00]}  e6 {[%clk 0:03:00]} 2. d4 {[%clk 0:03:00]}  d5 {[%clk 0:03:00]} 3. e5 {[%clk 0:03:00]}  c5 {[%clk 0:03:00]} 4. c3 {[%clk 0:02:57]}  Bd7 {[%clk 0:03:00]} 5. Nf3 {[%clk 0:02:55]}  Qb6 {[%clk 0:03:00]} 6. a3 {[%clk 0:02:52]}  cxd4 {[%clk 0:02:59]} 7. cxd4 {[%clk 0:02:52]}  Bb5 {[%clk 0:02:59]} 8. Bxb5+ {[%clk 0:02:52]}  Qxb5 {[%clk 0:02:59]} 9. Nc3 {[%clk 0:02:53]}  Qb6 {[%clk 0:02:59]} 10. O-O {[%clk 0:02:53]}  Nc6 {[%clk 0:02:59]} 11. b4 {[%clk 0:02:52]}  Nge7 {[%clk 0:02:57]} 12. Na4 {[%clk 0:02:51]}  Qd8 {[%clk 0:02:57]} 13. Nc5 {[%clk 0:02:50]}  Qc8 {[%clk 0:02:50]} 14. Bg5 {[%clk 0:02:45]}  b6 {[%clk 0:02:44]} 15. Nd3 {[%clk 0:02:42]}  Nf5 {[%clk 0:02:37]} 16. Rc1 {[%clk 0:02:41]}  Qd7 {[%clk 0:02:37]} 17. Be3 {[%clk 0:02:17]}  a5 {[%clk 0:02:18]} 18. b5 {[%clk 0:02:14]}  Na7 {[%clk 0:02:18]} 19. a4 {[%clk 0:02:14]}  Be7 {[%clk 0:02:18]} 20. Rc3 {[%clk 0:02:00]}  O-O {[%clk 0:02:16]} 21. Qc2 {[%clk 0:02:01]}  Rfc8 {[%clk 0:02:14]} 22. Rc1 {[%clk 0:02:00]}  Rxc3 {[%clk 0:02:14]} 23. Qxc3 {[%clk 0:02:01]}  Rc8 {[%clk 0:02:15]} 24. Qd2 {[%clk 0:02:01]}  Nxe3 {[%clk 0:01:47]} 25. fxe3 {[%clk 0:02:00]}  Bf8 {[%clk 0:01:44]} 26. Rxc8 {[%clk 0:01:51]}  Qxc8 {[%clk 0:01:45]} 27. Qc1 {[%clk 0:01:52]}  Qxc1+ {[%clk 0:01:44]} 28. Nxc1 {[%clk 0:01:52]}  f6 {[%clk 0:01:44]} 29. Kf2 {[%clk 0:01:50]}  Kf7 {[%clk 0:01:44]} 30. Ke2 {[%clk 0:01:44]}  Nc8 {[%clk 0:01:44]} 31. Kd3 {[%clk 0:01:36]}  Ba3 {[%clk 0:01:39]} 32. Ne2 {[%clk 0:01:31]}  Ne7 {[%clk 0:01:37]} 33. g4 {[%clk 0:01:28]}  Ng6 {[%clk 0:01:33]} 34. exf6 {[%clk 0:01:26]}  gxf6 {[%clk 0:01:34]} 35. e4 {[%clk 0:01:26]}  Bd6 {[%clk 0:01:19]} 36. h4 {[%clk 0:01:24]}  dxe4+ {[%clk 0:01:05]} 37. Kxe4 {[%clk 0:01:25]}  Ne7 {[%clk 0:01:05]} 38. g5 {[%clk 0:01:17]}  f5+ {[%clk 0:00:55]} 39. Kd3 {[%clk 0:01:16]}  Kg6 {[%clk 0:00:47]} 40. Ne5+ {[%clk 0:01:05]}  Kh5 {[%clk 0:00:46]} 41. Nf4+ {[%clk 0:01:03]}  Kxh4 {[%clk 0:00:46]} 42. Nxe6 {[%clk 0:01:04]}  Nd5 {[%clk 0:00:39]} 43. g6 {[%clk 0:00:44]}  hxg6 {[%clk 0:00:33]} 44. Nxg6+ {[%clk 0:00:44]}  Kg3 {[%clk 0:00:30]} 45. Kc4 {[%clk 0:00:41]}  Ne3+ {[%clk 0:00:23]} 46. Kd3 {[%clk 0:00:41]}  Nd5 {[%clk 0:00:23]} 47. Ng7 {[%clk 0:00:40]}  Kg4 {[%clk 0:00:15]} 48. Ne5+ {[%clk 0:00:40]}  Kg5 {[%clk 0:00:15]} 49. Nc4 {[%clk 0:00:38]}  Be7 {[%clk 0:00:08]} 50. Ne6+ {[%clk 0:00:37]}  Kf6 {[%clk 0:00:09]} 51. Nc7 {[%clk 0:00:25]}  Nxc7 {[%clk 0:00:08]} 52. Nxb6 {[%clk 0:00:25]}  Ke6 {[%clk 0:00:07]} 53. Kc4 {[%clk 0:00:25]}  f4 {[%clk 0:00:07]} 54. d5+ {[%clk 0:00:25]}  Ke5 {[%clk 0:00:07]} 55. Nd7+ {[%clk 0:00:25]}  Kd6 {[%clk 0:00:08]} 56. b6 {[%clk 0:00:25]}  Kxd7 {[%clk 0:00:07]} 57. b7 {[%clk 0:00:25]}  Na6 {[%clk 0:00:07]} 58. Kb5 {[%clk 0:00:25]}  Nb8 {[%clk 0:00:08]} 59. Kxa5 {[%clk 0:00:24]}  f3 {[%clk 0:00:08]} 60. Kb6 {[%clk 0:00:24]}  f2 {[%clk 0:00:09]} 61. a5 {[%clk 0:00:25]}  f1=Q {[%clk 0:00:08]} 62. Ka7 {[%clk 0:00:26]}  Qa6+ {[%clk 0:00:08]} 63. Kxb8 {[%clk 0:00:26]}  Bd6# {[%clk 0:00:09]} 0-1


[Site "https://www.chess.com"]

[Event "Titled Tuesday Blitz February 22 Early 2022"]
[White "Palu, Andres"]
[Black "Omelja, Artem"]
[WhiteFideId "119288"]
[BlackFideId "14119846"]
[WhiteElo "2050"]
[BlackElo "2418"]
[Result "0-1"]
[Round "01"]
[TimeControl "180+1"]
[Date "2022.02.22"]
[WhiteClock "0:01:19"]
[BlackClock "0:01:16"]

1. e4 {[%clk 0:03:00]}  c5 {[%clk 0:02:59]} 2. Nf3 {[%clk 0:02:59]}  e6 {[%clk 0:02:56]} 3. d4 {[%clk 0:02:58]}  cxd4 {[%clk 0:02:57]} 4. Nxd4 {[%clk 0:02:59]}  a6 {[%clk 0:02:58]} 5. Nc3 {[%clk 0:03:00]}  b5 {[%clk 0:02:57]} 6. g3 {[%clk 0:03:00]}  Bb7 {[%clk 0:02:56]} 7. Bg2 {[%clk 0:03:01]}  Nf6 {[%clk 0:02:56]} 8. Qd3 {[%clk 0:02:56]}  Nc6 {[%clk 0:02:49]} 9. O-O {[%clk 0:02:55]}  Qc7 {[%clk 0:02:41]} 10. Bg5 {[%clk 0:02:48]}  Ne5 {[%clk 0:02:27]} 11. Qe2 {[%clk 0:02:39]}  Bc5 {[%clk 0:02:25]} 12. Nb3 {[%clk 0:02:06]}  Bb6 {[%clk 0:02:23]} 13. Rad1 {[%clk 0:02:00]}  h5 {[%clk 0:02:20]} 14. Kh1 {[%clk 0:01:58]}  h4 {[%clk 0:01:30]} 15. Bxh4 {[%clk 0:01:41]}  Neg4 {[%clk 0:01:23]} 16. h3 {[%clk 0:01:29]}  Rxh4 {[%clk 0:01:22]} 17. e5 {[%clk 0:01:19]}  Rxh3+ {[%clk 0:01:16]} 18. Kg1 {[%clk 0:01:19]}  Rxg3 {[%clk 0:01:16]} 0-1


[Site "https://www.chess.com"]

[Event "Titled Tuesday Blitz February 22 Early 2022"]
[White "Paravyan, David"]
[Black "Pires, Marcos Vinicius Torsani"]
[WhiteFideId "4194985"]
[BlackFideId "2118939"]
[WhiteElo "2569"]
[BlackElo "2273"]
[Result "1-0"]
[Round "01"]
[TimeControl "180+1"]
[Date "2022.02.22"]
[WhiteClock "0:00:56"]
[BlackClock "0:00:10"]

1. e4 {[%clk 0:03:00]}  c5 {[%clk 0:02:55]} 2. Nf3 {[%clk 0:03:01]}  g6 {[%clk 0:02:54]} 3. d4 {[%clk 0:03:01]}  cxd4 {[%clk 0:02:55]} 4. Nxd4 {[%clk 0:03:01]}  Nc6 {[%clk 0:02:55]} 5. c4 {[%clk 0:03:01]}  Nf6 {[%clk 0:02:54]} 6. Nc3 {[%clk 0:03:00]}  d6 {[%clk 0:02:55]} 7. f3 {[%clk 0:03:00]}  Nxd4 {[%clk 0:02:49]} 8. Qxd4 {[%clk 0:03:01]}  Bg7 {[%clk 0:02:49]} 9. Be3 {[%clk 0:03:02]}  O-O {[%clk 0:02:50]} 10. Qd2 {[%clk 0:03:01]}  Be6 {[%clk 0:02:50]} 11. Rc1 {[%clk 0:02:59]}  Qa5 {[%clk 0:02:50]} 12. b3 {[%clk 0:02:54]}  Rfc8 {[%clk 0:02:49]} 13. Be2 {[%clk 0:02:52]}  a6 {[%clk 0:02:49]} 14. Nd5 {[%clk 0:02:43]}  Qxd2+ {[%clk 0:02:47]} 15. Kxd2 {[%clk 0:02:44]}  Nxd5 {[%clk 0:02:33]} 16. cxd5 {[%clk 0:02:43]}  Bd7 {[%clk 0:02:33]} 17. Bd3 {[%clk 0:02:35]}  f5 {[%clk 0:02:25]} 18. Rxc8+ {[%clk 0:02:31]}  Rxc8 {[%clk 0:02:24]} 19. Rc1 {[%clk 0:02:29]}  Rxc1 {[%clk 0:02:24]} 20. Kxc1 {[%clk 0:02:30]}  Kf7 {[%clk 0:02:23]} 21. Kd2 {[%clk 0:02:29]}  Be5 {[%clk 0:02:20]} 22. g3 {[%clk 0:02:28]}  fxe4 {[%clk 0:02:15]} 23. Bxe4 {[%clk 0:02:28]}  Bf5 {[%clk 0:01:57]} 24. Kd3 {[%clk 0:02:26]}  e6 {[%clk 0:01:49]} 25. Kc4 {[%clk 0:02:01]}  Bxe4 {[%clk 0:01:25]} 26. fxe4 {[%clk 0:02:01]}  exd5+ {[%clk 0:01:23]} 27. Kxd5 {[%clk 0:02:00]}  Ke7 {[%clk 0:01:22]} 28. a4 {[%clk 0:01:12]}  Kd7 {[%clk 0:01:15]} 29. Bf4 {[%clk 0:01:11]}  Bxf4 {[%clk 0:00:50]} 30. gxf4 {[%clk 0:01:12]}  Ke7 {[%clk 0:00:47]} 31. a5 {[%clk 0:01:08]}  Kd7 {[%clk 0:00:47]} 32. f5 {[%clk 0:01:06]}  Ke7 {[%clk 0:00:32]} 33. f6+ {[%clk 0:01:03]}  Kxf6 {[%clk 0:00:27]} 34. Kxd6 {[%clk 0:01:03]}  Kf7 {[%clk 0:00:27]} 35. e5 {[%clk 0:00:55]}  Ke8 {[%clk 0:00:24]} 36. Ke6 {[%clk 0:00:55]}  g5 {[%clk 0:00:18]} 37. Kf5 {[%clk 0:00:55]}  Ke7 {[%clk 0:00:17]} 38. Kxg5 {[%clk 0:00:55]}  Ke6 {[%clk 0:00:14]} 39. Kh6 {[%clk 0:00:55]}  Kxe5 {[%clk 0:00:15]} 40. Kxh7 {[%clk 0:00:56]}  Kf6 {[%clk 0:00:15]} 41. Kg8 {[%clk 0:00:56]}  Kg5 {[%clk 0:00:10]} 42. Kf7 {[%clk 0:00:56]} 1-0


[Site "https://www.chess.com"]

[Event "Titled Tuesday Blitz February 22 Early 2022"]
[White "Petrova, Irina"]
[Black "Shahaliyev, Ismayil"]
[WhiteFideId "14124122"]
[BlackFideId "13406388"]
[WhiteElo "1988"]
[BlackElo "2105"]
[Result "0-1"]
[Round "01"]
[TimeControl "180+1"]
[Date "2022.02.22"]
[WhiteClock "0:00:03"]
[BlackClock "0:00:18"]

1. e4 {[%clk 0:03:00]}  e6 {[%clk 0:02:59]} 2. d4 {[%clk 0:02:59]}  d5 {[%clk 0:03:00]} 3. Nc3 {[%clk 0:02:59]}  Bb4 {[%clk 0:02:59]} 4. Ne2 {[%clk 0:02:59]}  Nf6 {[%clk 0:02:52]} 5. Bg5 {[%clk 0:02:57]}  h6 {[%clk 0:02:47]} 6. Bxf6 {[%clk 0:02:54]}  Qxf6 {[%clk 0:02:48]} 7. a3 {[%clk 0:02:54]}  Bxc3+ {[%clk 0:02:46]} 8. Nxc3 {[%clk 0:02:55]}  dxe4 {[%clk 0:02:26]} 9. Nxe4 {[%clk 0:02:56]}  Qg6 {[%clk 0:02:25]} 10. Qf3 {[%clk 0:02:39]}  O-O {[%clk 0:02:24]} 11. Bd3 {[%clk 0:02:38]}  Nc6 {[%clk 0:02:16]} 12. c3 {[%clk 0:02:34]}  e5 {[%clk 0:01:56]} 13. d5 {[%clk 0:02:23]}  Ne7 {[%clk 0:01:51]} 14. c4 {[%clk 0:02:17]}  f5 {[%clk 0:01:51]} 15. Nc5 {[%clk 0:00:55]}  e4 {[%clk 0:01:44]} 16. Qe3 {[%clk 0:00:49]}  exd3 {[%clk 0:01:24]} 17. O-O-O {[%clk 0:00:48]}  Qd6 {[%clk 0:01:08]} 18. Rhe1 {[%clk 0:00:44]}  Ng6 {[%clk 0:01:08]} 19. Ne6 {[%clk 0:00:41]}  Bxe6 {[%clk 0:01:07]} 20. dxe6 {[%clk 0:00:42]}  Rae8 {[%clk 0:00:40]} 21. Rxd3 {[%clk 0:00:41]}  Qc6 {[%clk 0:00:31]} 22. c5 {[%clk 0:00:27]}  Rf6 {[%clk 0:00:31]} 23. Qg3 {[%clk 0:00:19]}  Rfxe6 {[%clk 0:00:25]} 24. Red1 {[%clk 0:00:18]}  Qxc5+ {[%clk 0:00:24]} 25. Rc3 {[%clk 0:00:17]}  Qe5 {[%clk 0:00:24]} 26. Qf3 {[%clk 0:00:14]}  c6 {[%clk 0:00:24]} 27. Rd7 {[%clk 0:00:13]}  R6e7 {[%clk 0:00:23]} 28. Rd2 {[%clk 0:00:11]}  Qe1+ {[%clk 0:00:19]} 29. Kc2 {[%clk 0:00:11]}  Qe4+ {[%clk 0:00:20]} 30. Rcd3 {[%clk 0:00:10]}  Ne5 {[%clk 0:00:18]} 31. Qxe4 {[%clk 0:00:10]}  fxe4 {[%clk 0:00:19]} 32. Rd4 {[%clk 0:00:09]}  Ng4 {[%clk 0:00:18]} 33. h3 {[%clk 0:00:09]}  Nf6 {[%clk 0:00:18]} 34. Rd6 {[%clk 0:00:08]}  Kf7 {[%clk 0:00:19]} 35. Kb3 {[%clk 0:00:07]}  Re5 {[%clk 0:00:19]} 36. R6d4 {[%clk 0:00:06]}  R8e6 {[%clk 0:00:19]} 37. Rb4 {[%clk 0:00:06]}  Re7 {[%clk 0:00:19]} 38. Rbd4 {[%clk 0:00:05]}  Nd5 {[%clk 0:00:19]} 39. Kc2 {[%clk 0:00:05]}  Rf5 {[%clk 0:00:18]} 40. g4 {[%clk 0:00:04]}  Rf4 {[%clk 0:00:18]} 41. Kb3 {[%clk 0:00:03]}  a5 {[%clk 0:00:18]} 42. a4 {[%clk 0:00:03]}  Re6 {[%clk 0:00:18]} 43. Kc4 {[%clk 0:00:03]}  Ref6 {[%clk 0:00:18]} 44. Kc5 {[%clk 0:00:03]}  Rxf2 {[%clk 0:00:18]} 0-1


[Site "https://www.chess.com"]

[Event "Titled Tuesday Blitz February 22 Early 2022"]
[White "Petrovic, Aleksa"]
[Black "Grandelius, Nils"]
[WhiteFideId "967629"]
[BlackFideId "1710400"]
[WhiteElo "2139"]
[BlackElo "2617"]
[Result "0-1"]
[Round "01"]
[TimeControl "180+1"]
[Date "2022.02.22"]
[WhiteClock "0:00:22"]
[BlackClock "0:00:45"]

1. d4 {[%clk 0:03:00]}  d5 {[%clk 0:02:58]} 2. c4 {[%clk 0:02:59]}  e6 {[%clk 0:02:59]} 3. Nf3 {[%clk 0:02:59]}  a6 {[%clk 0:02:59]} 4. cxd5 {[%clk 0:02:58]}  exd5 {[%clk 0:03:00]} 5. Nc3 {[%clk 0:02:59]}  h6 {[%clk 0:02:58]} 6. Bf4 {[%clk 0:02:56]}  Nf6 {[%clk 0:02:58]} 7. Rc1 {[%clk 0:02:53]}  Bd6 {[%clk 0:02:56]} 8. Bxd6 {[%clk 0:02:51]}  Qxd6 {[%clk 0:02:57]} 9. e3 {[%clk 0:02:50]}  O-O {[%clk 0:02:54]} 10. Bd3 {[%clk 0:02:50]}  Bg4 {[%clk 0:02:54]} 11. h3 {[%clk 0:02:48]}  Bxf3 {[%clk 0:02:55]} 12. Qxf3 {[%clk 0:02:49]}  Nbd7 {[%clk 0:02:55]} 13. O-O {[%clk 0:02:48]}  c6 {[%clk 0:02:56]} 14. Rfd1 {[%clk 0:02:48]}  Rfe8 {[%clk 0:02:55]} 15. a3 {[%clk 0:02:25]}  Nb6 {[%clk 0:02:31]} 16. Qe2 {[%clk 0:02:20]}  a5 {[%clk 0:02:23]} 17. Nb1 {[%clk 0:02:05]}  Qe7 {[%clk 0:02:10]} 18. Nd2 {[%clk 0:02:04]}  Nc8 {[%clk 0:02:10]} 19. Nf3 {[%clk 0:02:03]}  Nd6 {[%clk 0:02:10]} 20. Ne5 {[%clk 0:02:02]}  Nd7 {[%clk 0:02:06]} 21. Nxd7 {[%clk 0:01:55]}  Qxd7 {[%clk 0:02:07]} 22. Qc2 {[%clk 0:01:44]}  h5 {[%clk 0:01:49]} 23. Re1 {[%clk 0:01:34]}  h4 {[%clk 0:01:32]} 24. Re2 {[%clk 0:01:34]}  Re7 {[%clk 0:01:31]} 25. Rce1 {[%clk 0:01:30]}  g6 {[%clk 0:01:30]} 26. e4 {[%clk 0:01:10]}  dxe4 {[%clk 0:01:30]} 27. Bxe4 {[%clk 0:01:10]}  Rae8 {[%clk 0:01:03]} 28. Bxg6 {[%clk 0:00:44]}  Rxe2 {[%clk 0:01:00]} 29. Rxe2 {[%clk 0:00:44]}  Rxe2 {[%clk 0:00:59]} 30. Bh7+ {[%clk 0:00:43]}  Kg7 {[%clk 0:00:58]} 31. Qxe2 {[%clk 0:00:44]}  Kxh7 {[%clk 0:00:58]} 32. Qh5+ {[%clk 0:00:44]}  Kg7 {[%clk 0:00:59]} 33. Qg5+ {[%clk 0:00:38]}  Kf8 {[%clk 0:00:59]} 34. Qh6+ {[%clk 0:00:37]}  Ke8 {[%clk 0:00:57]} 35. Qh8+ {[%clk 0:00:36]}  Ke7 {[%clk 0:00:57]} 36. Qxh4+ {[%clk 0:00:37]}  f6 {[%clk 0:00:58]} 37. Qh7+ {[%clk 0:00:36]}  Nf7 {[%clk 0:00:58]} 38. Qe4+ {[%clk 0:00:36]}  Qe6 {[%clk 0:00:59]} 39. Qf4 {[%clk 0:00:35]}  Nd6 {[%clk 0:00:51]} 40. h4 {[%clk 0:00:35]}  Qf5 {[%clk 0:00:51]} 41. Qh6 {[%clk 0:00:29]}  Qe4 {[%clk 0:00:47]} 42. Qg7+ {[%clk 0:00:23]}  Nf7 {[%clk 0:00:47]} 43. h5 {[%clk 0:00:21]}  Qe1+ {[%clk 0:00:46]} 44. Kh2 {[%clk 0:00:22]}  Qxf2 {[%clk 0:00:47]} 45. h6 {[%clk 0:00:22]}  Qh4+ {[%clk 0:00:47]} 46. Kg1 {[%clk 0:00:22]}  Qxd4+ {[%clk 0:00:45]} 0-1


[Site "https://www.chess.com"]